fUST/lending_fUST_20250206
["ID","MTS","AMOUNT","RATE_DAILY","PERIOD"]
[351915827,1738841439804,-500.0,0.00013698,2]
[351915828,1738841439813,-500.0,0.00013698,2]
[351915829,1738841439823,-500.0,0.00013698,2]
[351915830,1738841439832,-515.22791306,0.00013698,2]
[351915831,1738841439842,-508.13105513,0.00013698,2]
[351915832,1738841439852,-500.0,0.00013698,2]
[351915833,1738841439862,-500.0,0.00013698,2]
[351915834,1738841439871,-500.0,0.00013698,2]
[351915835,1738841439880,-500.0,0.00013698,2]
[351915836,1738841439888,-500.0,0.00013698,2]
[351915837,1738841439897,-500.0,0.00013698,2]
[351915838,1738841439906,-500.0,0.00013698,2]
[351915839,1738841439915,-513.11074289,0.00013698,2]
[351915840,1738841439924,-500.0,0.00013698,2]
[351915841,1738841439934,-500.0,0.00013698,2]
[351915842,1738841439943,-500.0,0.00013698,2]
[351915843,1738841439952,-500.0,0.00013698,2]
[351915844,1738841439961,-500.0,0.00013698,2]
[351915846,1738841439970,-500.0,0.00013698,2]
[351915847,1738841439979,-526.82,0.00013698,2]
[351915848,1738841439991,-500.0,0.00013698,2]
[351915849,1738841439999,-500.0,0.00013698,2]
[351915850,1738841440008,-709.33,0.00013698,2]
[351915851,1738841440017,-595.03,0.00013698,2]
[351915852,1738841440028,-500.0,0.00013698,2]
[351915853,1738841440037,-500.0,0.00013698,2]
[351915854,1738841440047,-500.0,0.00013698,2]
[351915855,1738841440056,-500.0,0.00013698,2]
[351915856,1738841440065,-500.0,0.00013698,2]
[351915857,1738841440074,-837.68,0.00013698,2]
[351915858,1738841440082,-512.8579241,0.00013698,2]
[351915860,1738841440091,-646.93084868,0.00013698,2]
[351915861,1738841440100,-500.0,0.00013698,2]
[351915862,1738841440110,-500.0,0.00013698,2]
[351915863,1738841440120,-500.0,0.00013698,2]
[351915864,1738841440129,-802.42,0.00013698,2]
[351915865,1738841440139,-500.0,0.00013698,2]
[351915866,1738841440153,-500.0,0.00013698,2]
[351915867,1738841440163,-500.0,0.00013698,2]
[351915868,1738841440173,-500.0,0.00013698,2]
[351915869,1738841440182,-500.0,0.00013698,2]
[351915871,1738841440192,-500.0,0.00013698,2]
[351915872,1738841440202,-500.0,0.00013698,2]
[351915873,1738841440211,-1362.47,0.00013698,2]
[351915874,1738841440223,-687.82,0.00013698,2]
[351915875,1738841440232,-612.57339544,0.00013698,2]
[351915876,1738841440245,-647.49731656,0.00013698,2]
[351915878,1738841440254,-500.0,0.00013698,2]
[351915880,1738841440264,-1428.8,0.00013698,2]
[351915881,1738841440273,-500.0,0.00013698,2]
[351915882,1738841440282,-500.0,0.00013698,2]
[351915883,1738841440292,-500.0,0.00013698,2]
[351915884,1738841440301,-500.0,0.00013698,2]
[351915885,1738841440311,-500.0,0.00013698,2]
[351915886,1738841440321,-500.0,0.00013698,2]
[351915887,1738841440330,-500.0,0.00013698,2]
[351915888,1738841440340,-500.0,0.00013698,2]
[351915889,1738841440350,-500.0,0.00013698,2]
[351915891,1738841440359,-1010.46,0.00013698,2]
[351915892,1738841440368,-500.0,0.00013698,2]
[351915893,1738841440378,-226.57920029,0.00013698,2]
[351915894,1738841440387,-500.0,0.00013698,2]
[351915895,1738841440397,-749.19,0.00013698,2]
[351915896,1738841440407,-500.0,0.00013698,2]
[351915897,1738841440416,-500.0,0.00013698,2]
[351915898,1738841440426,-500.0,0.00013698,2]
[351915899,1738841440436,-500.0,0.00013698,2]
[351915900,1738841440445,-500.0,0.00013698,2]
[351915901,1738841440456,-500.0,0.00013698,2]
[351915902,1738841440466,-500.0,0.00013698,2]
[351915903,1738841440476,-500.0,0.00013698,2]
[351915904,1738841440490,-500.0,0.00013698,2]
[351915905,1738841440501,-658.87,0.00013698,2]
[351915906,1738841440511,-1272.36,0.00013698,2]
[351915907,1738841440521,-500.0,0.00013698,2]
[351915908,1738841440532,-500.0,0.00013698,2]
[351915909,1738841440543,-500.0,0.00013698,2]
[351915910,1738841440553,-500.0,0.00013698,2]
[351915911,1738841440563,-217.36080263,0.00013698,2]
[351915912,1738841440572,-296.04528776,0.00013698,2]
[351915913,1738841440582,-500.0,0.00013698,2]
[351915914,1738841440592,-1184.44,0.00013698,2]
[351915915,1738841440602,-500.0,0.00013698,2]
[351915916,1738841440613,-1569.84,0.00013698,2]
[351915917,1738841440623,-500.0,0.00013698,2]
[351915918,1738841440633,-500.0,0.00013698,2]
[351915919,1738841440643,-560.15,0.00013698,2]
[351915920,1738841440653,-500.0,0.00013698,2]
[351915921,1738841440663,-500.0,0.00013698,2]
[351915922,1738841440673,-500.0,0.00013698,2]
[351915923,1738841440683,-500.0,0.00013698,2]
[351915924,1738841440692,-500.0,0.00013698,2]
[351915926,1738841440702,-1311.26,0.00013698,2]
[351915927,1738841440711,-500.0,0.00013698,2]
[351915928,1738841440722,-500.0,0.00013698,2]
[351915929,1738841440731,-500.0,0.00013698,2]
[351915930,1738841440747,-500.0,0.00013698,2]
[351915931,1738841440756,-683.83,0.00013698,2]
[351915932,1738841440766,-500.0,0.00013698,2]
[351915933,1738841440775,-500.0,0.00013698,2]
[351915934,1738841440784,-500.0,0.00013698,2]
[351915935,1738841440794,-500.0,0.00013698,2]
[351915936,1738841440803,-312.37,0.00013698,2]
[351915937,1738841440812,-635.57,0.00013698,2]
[351915938,1738841440822,-500.0,0.00013698,2]
[351915939,1738841440831,-500.0,0.00013698,2]
[351915940,1738841440841,-500.0,0.00013698,2]
[351915941,1738841440851,-178.7979496,0.00013698,2]
[351915942,1738841440860,-500.0,0.00013698,2]
[351915943,1738841440869,-500.0,0.00013698,2]
[351915944,1738841440879,-203.25907664,0.00013698,2]
[351915945,1738841440888,-500.0,0.00013698,2]
[351915946,1738841440898,-500.0,0.00013698,2]
[351915947,1738841440907,-500.0,0.00013698,2]
[351915948,1738841440917,-500.0,0.00013698,2]
[351915949,1738841440927,-1173.94,0.00013698,2]
[351915950,1738841440937,-500.0,0.00013698,2]
[351915951,1738841440946,-500.0,0.00013698,2]
[351915952,1738841440955,-500.0,0.00013698,2]
[351915953,1738841440965,-2233.34,0.00013698,2]
[351915954,1738841440975,-500.0,0.00013698,2]
[351915955,1738841440988,-500.0,0.00013698,2]
[351915956,1738841440998,-500.0,0.00013698,2]
[351915957,1738841441007,-1407.63,0.00013698,2]
[351915958,1738841441017,-274.40048507,0.00013698,2]
[351915959,1738841441026,-500.0,0.00013698,2]
[351915960,1738841441035,-574.58,0.00013698,2]
[351915961,1738841441045,-3631.57,0.00013698,2]
[351915962,1738841441054,-3340.79,0.00013698,2]
[351915963,1738841441064,-500.0,0.00013698,2]
[351915964,1738841441073,-1247.5,0.00013698,2]
[351915965,1738841441083,-8361.99,0.00013698,2]
[351915966,1738841441092,-327.99996,0.00013698,2]
[351915967,1738841441276,-500.0,0.00013698,2]
[351915968,1738841441286,-500.0,0.00013698,2]
[351915969,1738841441296,-500.0,0.00013698,2]
[351915970,1738841441306,-500.0,0.00013698,2]
[351915971,1738841441316,-609.26487491,0.00013698,2]
[351915972,1738841441324,-500.0,0.00013698,2]
[351915973,1738841441333,-14729.27,0.00013698,2]
[351915974,1738841441342,-500.0,0.00013698,2]
[351915975,1738841441351,-500.0,0.00013698,2]
[351915976,1738841441361,-500.0,0.00013698,2]
[351915977,1738841441371,-500.0,0.00013698,2]
[351915978,1738841441380,-500.0,0.00013698,2]
[351915979,1738841441390,-603.37,0.00013698,2]
[351915980,1738841441400,-390.85512548,0.00013698,2]
[351915981,1738841441410,-500.0,0.00013698,2]
[351915982,1738841441420,-500.0,0.00013698,2]
[351915983,1738841441430,-500.0,0.00013698,2]
[351915984,1738841441439,-500.0,0.00013698,2]
[351915985,1738841441449,-500.0,0.00013698,2]
[351915986,1738841441458,-500.0,0.00013698,2]
[351915987,1738841441467,-500.0,0.00013698,2]
[351915988,1738841441476,-500.0,0.00013698,2]
[351915989,1738841441488,-500.0,0.00013698,2]
[351915990,1738841441497,-500.0,0.00013698,2]
[351915991,1738841441507,-500.0,0.00013698,2]
[351915992,1738841441517,-918.85,0.00013698,2]
[351915993,1738841441526,-500.0,0.00013698,2]
[351915994,1738841441535,-500.0,0.00013698,2]
[351915995,1738841441545,-500.0,0.00013698,2]
[351915996,1738841441554,-500.0,0.00013698,2]
[351915997,1738841441563,-500.0,0.00013698,2]
[351915998,1738841441573,-500.0,0.00013698,2]
[351915999,1738841441582,-500.0,0.00013698,2]
[351916000,1738841441591,-1595.17,0.00013698,2]
[351916001,1738841441600,-500.0,0.00013698,2]
[351916002,1738841441609,-500.0,0.00013698,2]
[351916003,1738841441619,-500.0,0.00013698,2]
[351916004,1738841441628,-500.0,0.00013698,2]
[351916005,1738841441638,-500.0,0.00013698,2]
[351916006,1738841441647,-539.1048513,0.00013698,2]
[351916007,1738841441656,-950.18,0.00013698,2]
[351916008,1738841441665,-500.0,0.00013698,2]
[351916009,1738841441674,-6367.58,0.00013698,2]
[351916010,1738841441684,-1279.6,0.00013698,2]
[351916011,1738841441694,-500.0,0.00013698,2]
[351916012,1738841441703,-500.0,0.00013698,2]
[351916013,1738841441713,-500.0,0.00013698,2]
[351916014,1738841441722,-1551.92,0.00013698,2]
[351916015,1738841441731,-500.0,0.00013698,2]
[351916016,1738841441743,-500.0,0.00013698,2]
[351916017,1738841441753,-1383.45,0.00013698,2]
[351916018,1738841441762,-501.31913381,0.00013698,2]
[351916019,1738841441771,-500.0,0.00013698,2]
[351916020,1738841441781,-500.0,0.00013698,2]
[351916021,1738841441790,-500.0,0.00013698,2]
[351916022,1738841441800,-500.0,0.00013698,2]
[351916023,1738841441809,-500.0,0.00013698,2]
[351916024,1738841441819,-500.0,0.00013698,2]
[351916025,1738841441828,-2423.02,0.00013698,2]
[351916026,1738841441837,-500.0,0.00013698,2]
[351916027,1738841441846,-45086.6,0.00013698,2]
[351916028,1738841441856,-2110.1,0.00013698,2]
[351916029,1738841441865,-500.0,0.00013698,2]
[351916030,1738841441874,-500.0,0.00013698,2]
[351916031,1738841441884,-591.08176997,0.00013698,2]
[351916032,1738841441893,-500.0,0.00013698,2]
[351916033,1738841441902,-500.0,0.00013698,2]
[351916034,1738841441912,-500.0,0.00013698,2]
[351916035,1738841441922,-500.0,0.00013698,2]
[351916036,1738841441931,-2428.01,0.00013698,2]
[351916037,1738841441940,-500.0,0.00013698,2]
[351916038,1738841441949,-798.79,0.00013698,2]
[351916039,1738841441958,-500.0,0.00013698,2]
[351916040,1738841441967,-18452.3,0.00013698,2]
[351916041,1738841441977,-1688.03,0.00013698,2]
[351916042,1738841441988,-1479.2,0.00013698,2]
[351916043,1738841441998,-500.0,0.00013698,2]
[351916044,1738841442007,-805.95,0.00013698,2]
[351916045,1738841442016,-650.14,0.00013698,2]
[351916046,1738841442026,-1447.64,0.00013698,2]
[351916047,1738841442035,-500.0,0.00013698,2]
[351916048,1738841442045,-2324.37,0.00013698,2]
[351916049,1738841442055,-500.0,0.00013698,2]
[351916050,1738841442064,-500.0,0.00013698,2]
[351916051,1738841442074,-1520.8,0.00013698,2]
[351916052,1738841442083,-500.0,0.00013698,2]
[351916053,1738841442092,-1442.92,0.00013698,2]
[351916054,1738841442102,-500.0,0.00013698,2]
[351916055,1738841442111,-500.0,0.00013698,2]
[351916056,1738841442120,-500.0,0.00013698,2]
[351916057,1738841442130,-500.0,0.00013698,2]
[351916058,1738841442141,-696.94,0.00013698,2]
[351916059,1738841442151,-500.0,0.00013698,2]
[351916060,1738841442160,-500.0,0.00013698,2]
[351916061,1738841442170,-3668.98,0.00013698,2]
[351916062,1738841442180,-500.0,0.00013698,2]
[351916063,1738841442191,-500.0,0.00013698,2]
[351916064,1738841442200,-500.0,0.00013698,2]
[351916065,1738841442209,-500.0,0.00013698,2]
[351916066,1738841442219,-500.0,0.00013698,2]
[351916067,1738841442231,-839.18,0.00013698,2]
[351916068,1738841442242,-500.0,0.00013698,2]
[351916069,1738841442252,-500.0,0.00013698,2]
[351916070,1738841442261,-3419.9,0.00013698,2]
[351916071,1738841442271,-449.72302827,0.00013698,2]
[351916072,1738841442280,-861.16,0.00013698,2]
[351916073,1738841442290,-500.0,0.00013698,2]
[351916074,1738841442299,-500.0,0.00013698,2]
[351916075,1738841442309,-816.9,0.00013698,2]
[351916076,1738841442318,-10162.58,0.00013698,2]
[351916077,1738841442328,-1742.89,0.00013698,2]
[351916078,1738841442338,-1917.16,0.00013698,2]
[351916079,1738841442347,-500.0,0.00013698,2]
[351916080,1738841442359,-3619.86,0.00013698,2]
[351916081,1738841442368,-500.0,0.00013698,2]
[351916082,1738841442379,-870.22,0.00013698,2]
[351916083,1738841442388,-845.49,0.00013698,2]
[351916084,1738841442398,-500.0,0.00013698,2]
[351916085,1738841442407,-500.0,0.00013698,2]
[351916086,1738841442417,-500.0,0.00013698,2]
[351916087,1738841442428,-196.03949853,0.00013698,2]
[351916088,1738841442438,-1425.73,0.00013698,2]
[351916089,1738841442447,-706.9,0.00013698,2]
[351916090,1738841442457,-1655.67,0.00013698,2]
[351916091,1738841442466,-500.0,0.00013698,2]
[351916092,1738841442476,-500.0,0.00013698,2]
[351916093,1738841442487,-500.0,0.00013698,2]
[351916094,1738841442496,-500.0,0.00013698,2]
[351916095,1738841442505,-500.0,0.00013698,2]
[351916096,1738841442515,-500.0,0.00013698,2]
[351916097,1738841442524,-500.0,0.00013698,2]
[351916098,1738841442533,-500.0,0.00013698,2]
[351916099,1738841442544,-3339.14,0.00013698,2]
[351916100,1738841442553,-1000.0,0.00013698,2]
[351916101,1738841442563,-592.09,0.00013698,2]
[351916102,1738841442572,-1854.28,0.00013698,2]
[351916103,1738841442582,-500.0,0.00013698,2]
[351916104,1738841442591,-500.0,0.00013698,2]
[351916105,1738841442601,-500.0,0.00013698,2]
[351916106,1738841442610,-500.0,0.00013698,2]
[351916107,1738841442619,-500.0,0.00013698,2]
[351916108,1738841442629,-500.0,0.00013698,2]
[351916109,1738841442638,-500.0,0.00013698,2]
[351916110,1738841442648,-500.0,0.00013698,2]
[351916111,1738841442657,-886.01,0.00013698,2]
[351916112,1738841442666,-713.36,0.00013698,2]
[351916113,1738841442676,-500.0,0.00013698,2]
[351916114,1738841442685,-500.0,0.00013698,2]
[351916115,1738841442695,-1030.99,0.00013698,2]
[351916116,1738841442704,-1206.81,0.00013698,2]
[351916117,1738841442713,-503.41528639,0.00013698,2]
[351916118,1738841442722,-541.0886545,0.00013698,2]
[351916119,1738841442732,-654.045278,0.00013699,2]
[351916120,1738841442743,-234.737911,0.00013699,2]
[351916121,1738841442752,-200.6926653,0.00013699,2]
[351916122,1738841442763,-500.0,0.00013699,2]
[351916123,1738841442772,-500.0,0.00013699,2]
[351916124,1738841442781,-500.0,0.00013699,2]
[351916125,1738841442791,-500.0,0.00013699,2]
[351916126,1738841442801,-500.0,0.00013699,2]
[351916127,1738841442810,-500.0,0.00013699,2]
[351916128,1738841442820,-500.0,0.00013699,2]
[351916129,1738841442830,-500.0,0.00013699,2]
[351916130,1738841442839,-500.0,0.00013699,2]
[351916131,1738841442849,-500.0,0.00013699,2]
[351916132,1738841442858,-500.0,0.00013699,2]
[351916133,1738841442868,-500.0,0.00013699,2]
[351916134,1738841442877,-500.0,0.00013699,2]
[351916135,1738841442887,-500.0,0.00013699,2]
[351916136,1738841442896,-500.0,0.00013699,2]
[351916137,1738841442906,-500.0,0.00013699,2]
[351916138,1738841442915,-500.0,0.00013699,2]
[351916139,1738841442925,-500.0,0.00013699,2]
[351916140,1738841442934,-500.0,0.00013699,2]
[351916141,1738841442943,-500.0,0.00013699,2]
[351916142,1738841442952,-500.0,0.00013699,2]
[351916143,1738841442962,-500.0,0.00013699,2]
[351916144,1738841442972,-637.1095554,0.00013699,2]
[351916145,1738841442981,-500.0,0.00013699,2]
[351916146,1738841442992,-500.0,0.00013699,2]
[351916147,1738841443002,-500.0,0.00013699,2]
[351916148,1738841443012,-500.0,0.00013699,2]
[351916149,1738841443021,-500.0,0.00013699,2]
[351916150,1738841443031,-500.0,0.00013699,2]
[351916151,1738841443042,-594.62366546,0.00013699,2]
[351916153,1738841443052,-594.62366546,0.00013699,2]
[351916154,1738841443062,-594.62366546,0.00013699,2]
[351916155,1738841443072,-594.62366546,0.00013699,2]
[351916156,1738841443081,-594.62366546,0.00013699,2]
[351916158,1738841443091,-594.62366546,0.00013699,2]
[351916160,1738841443100,-594.62366546,0.00013699,2]
[351916161,1738841443111,-594.62366546,0.00013699,2]
[351916162,1738841443121,-594.62366546,0.00013699,2]
[351916163,1738841443131,-594.62366546,0.00013699,2]
[351916164,1738841443144,-594.62366546,0.00013699,2]
[351916165,1738841443154,-594.62366546,0.00013699,2]
[351916166,1738841443163,-594.62366546,0.00013699,2]
[351916167,1738841443173,-594.62366546,0.00013699,2]
[351916168,1738841443182,-594.62366546,0.00013699,2]
[351916169,1738841443192,-594.62366546,0.00013699,2]
[351916170,1738841443204,-594.62366546,0.00013699,2]
[351916171,1738841443214,-594.62366546,0.00013699,2]
[351916172,1738841443225,-594.62366546,0.00013699,2]
[351916173,1738841443235,-594.62366546,0.00013699,2]
[351916174,1738841443247,-594.62366546,0.00013699,2]
[351916175,1738841443257,-594.62366546,0.00013699,2]
[351916176,1738841443267,-594.62366546,0.00013699,2]
[351916177,1738841443276,-594.62366546,0.00013699,2]
[351916178,1738841443286,-594.62366546,0.00013699,2]
[351916179,1738841443295,-594.62366546,0.00013699,2]
[351916180,1738841443305,-594.62366546,0.00013699,2]
[351916181,1738841443314,-594.62366546,0.00013699,2]
[351916183,1738841443323,-594.62366546,0.00013699,2]
[351916185,1738841443333,-594.62366546,0.00013699,2]
[351916187,1738841443342,-594.62366546,0.00013699,2]
[351916189,1738841443352,-594.62366546,0.00013699,2]
[351916191,1738841443362,-594.62366546,0.00013699,2]
[351916193,1738841443371,-594.62366546,0.00013699,2]
[351916195,1738841443381,-594.62366546,0.00013699,2]
[351916197,1738841443390,-594.62366546,0.00013699,2]
[351916199,1738841443399,-594.62366546,0.00013699,2]
[351916201,1738841443409,-594.62366546,0.00013699,2]
[351916203,1738841443418,-594.62366546,0.00013699,2]
[351916205,1738841443427,-594.62366546,0.00013699,2]
[351916206,1738841443437,-594.62366546,0.00013699,2]
[351916208,1738841443446,-594.62366546,0.00013699,2]
[351916210,1738841443456,-594.62366546,0.00013699,2]
[351916213,1738841443465,-594.62366546,0.00013699,2]
[351916216,1738841443475,-594.62366546,0.00013699,2]
[351916219,1738841443484,-594.62366546,0.00013699,2]
[351916222,1738841443495,-594.62366546,0.00013699,2]
[351916225,1738841443504,-594.62366546,0.00013699,2]
[351916228,1738841443522,-594.62366546,0.00013699,2]
[351916231,1738841443531,-594.62366546,0.00013699,2]
[351916234,1738841443541,-594.62366546,0.00013699,2]
[351916236,1738841443551,-594.62366546,0.00013699,2]
[351916238,1738841443560,-594.62366546,0.00013699,2]
[351916240,1738841443569,-594.62366546,0.00013699,2]
[351916242,1738841443579,-843.71355289,0.00013699,2]
[351916243,1738841443589,-843.71355289,0.00013699,2]
[351916244,1738841443599,-843.71355289,0.00013699,2]
[351916245,1738841443608,-843.71355289,0.00013699,2]
[351916247,1738841443617,-843.71355289,0.00013699,2]
[351916248,1738841443628,-843.71355289,0.00013699,2]
[351916249,1738841443637,-843.71355289,0.00013699,2]
[351916250,1738841443647,-843.71355289,0.00013699,2]
[351916251,1738841443656,-159.523259,0.0001372,3]
[351916252,1738841443665,-354.6875562,0.000138,2]
[351916253,1738841443675,-354.6875562,0.000138,2]
[351916254,1738841443685,-354.6875562,0.000138,2]
[351916255,1738841443695,-347.6550448,0.000138,2]
[351916256,1738841443704,-215.7447598,0.000138,2]
[351916257,1738841443713,-154.5349496,0.000138,2]
[351916258,1738841443723,-154.5349496,0.000138,2]
[351916259,1738841443732,-215.384208,0.000138,2]
[351916260,1738841443743,-152.0,0.00013817,2]
[351916261,1738841443752,-500.0,0.00013835,2]
[351916262,1738841443762,-500.0,0.00013835,2]
[351916263,1738841443771,-500.0,0.00013835,2]
[351916264,1738841443781,-500.0,0.00013835,2]
[351916265,1738841443791,-500.0,0.00013835,2]
[351916266,1738841443800,-500.0,0.00013835,2]
[351916267,1738841443809,-500.0,0.00013835,2]
[351916268,1738841443819,-500.0,0.00013835,2]
[351916269,1738841443828,-500.0,0.00013835,2]
[351916270,1738841443838,-424.86869562,0.00013835,2]
[351916271,1738841443847,-500.0,0.00013835,2]
[351916272,1738841443857,-330.0769895,0.00013835,2]
[351916273,1738841443866,-500.0,0.00013835,2]
[351916275,1738841443876,-500.0,0.00013835,2]
[351916276,1738841443886,-636.61,0.00013835,2]
[351916277,1738841443895,-500.0,0.00013835,2]
[351916278,1738841443907,-500.0,0.00013835,2]
[351916279,1738841443916,-500.0,0.00013835,2]
[351916280,1738841443925,-500.0,0.00013835,2]
[351916281,1738841443935,-500.0,0.00013835,2]
[351916282,1738841443945,-500.0,0.00013835,2]
[351916283,1738841443954,-500.0,0.00013835,2]
[351916284,1738841443963,-500.0,0.00013835,2]
[351916285,1738841443973,-500.0,0.00013835,2]
[351916286,1738841443983,-500.0,0.00013835,2]
[351916287,1738841443993,-634.02193502,0.00013835,2]
[351916288,1738841444002,-500.0,0.00013835,2]
[351916289,1738841444011,-500.0,0.00013835,2]
[351916290,1738841444021,-500.0,0.00013835,2]
[351916291,1738841444030,-500.0,0.00013835,2]
[351916292,1738841444039,-709.33,0.00013835,2]
[351916293,1738841444048,-595.03,0.00013835,2]
[351916294,1738841444058,-500.0,0.00013835,2]
[351916295,1738841444067,-500.0,0.00013835,2]
[351916297,1738841444076,-500.0,0.00013835,2]
[351916299,1738841444086,-837.68,0.00013835,2]
[351916300,1738841444096,-500.0,0.00013835,2]
[351916301,1738841444106,-500.0,0.00013835,2]
[351916302,1738841444115,-562.02397539,0.00013835,2]
[351916303,1738841444126,-802.42,0.00013835,2]
[351916304,1738841444137,-500.0,0.00013835,2]
[351916305,1738841444149,-500.0,0.00013835,2]
[351916306,1738841444158,-560.7365571,0.00013835,2]
[351916307,1738841444167,-500.0,0.00013835,2]
[351916308,1738841444177,-500.0,0.00013835,2]
[351916309,1738841444189,-1362.47,0.00013835,2]
[351916310,1738841444199,-687.82,0.00013835,2]
[351916311,1738841444209,-1428.8,0.00013835,2]
[351916312,1738841444219,-500.0,0.00013835,2]
[351916313,1738841444230,-500.0,0.00013835,2]
[351916314,1738841444240,-500.0,0.00013835,2]
[351916315,1738841444250,-500.0,0.00013835,2]
[351916316,1738841444259,-500.0,0.00013835,2]
[351916317,1738841444269,-500.0,0.00013835,2]
[351916318,1738841444278,-1010.46,0.00013835,2]
[351916319,1738841444287,-500.0,0.00013835,2]
[351916320,1738841444298,-749.19,0.00013835,2]
[351916321,1738841444308,-500.0,0.00013835,2]
[351916322,1738841444318,-500.0,0.00013835,2]
[351916323,1738841444328,-588.76,0.00013835,2]
[351916324,1738841444338,-180.26221922,0.00013835,2]
[351916325,1738841444347,-500.0,0.00013835,2]
[351916326,1738841444358,-658.87,0.00013835,2]
[351916327,1738841444368,-1272.36,0.00013835,2]
[351916328,1738841444378,-500.0,0.00013835,2]
[351916329,1738841444388,-500.0,0.00013835,2]
[351916330,1738841444399,-1184.44,0.00013835,2]
[351916331,1738841444409,-500.0,0.00013835,2]
[351916332,1738841444420,-1569.84,0.00013835,2]
[351916333,1738841444431,-500.0,0.00013835,2]
[351916334,1738841444441,-500.0,0.00013835,2]
[351916335,1738841444451,-500.0,0.00013835,2]
[351916336,1738841444460,-500.0,0.00013835,2]
[351916337,1738841444470,-1311.26,0.00013835,2]
[351916338,1738841444481,-500.0,0.00013835,2]
[351916339,1738841444492,-500.0,0.00013835,2]
[351916340,1738841444501,-500.0,0.00013835,2]
[351916341,1738841444511,-500.0,0.00013835,2]
[351916342,1738841444522,-683.83,0.00013835,2]
[351916343,1738841444533,-500.0,0.00013835,2]
[351916344,1738841444543,-500.0,0.00013835,2]
[351916345,1738841444553,-500.0,0.00013835,2]
[351916346,1738841444562,-500.0,0.00013835,2]
[351916347,1738841444571,-635.57,0.00013835,2]
[351916348,1738841444581,-500.0,0.00013835,2]
[351916349,1738841444590,-520.68859544,0.00013835,2]
[351916350,1738841444599,-500.0,0.00013835,2]
[351916351,1738841444609,-248.77942215,0.00013835,2]
[351916352,1738841444618,-1173.94,0.00013835,2]
[351916353,1738841444628,-500.0,0.00013835,2]
[351916354,1738841444637,-500.0,0.00013835,2]
[351916355,1738841444647,-2233.34,0.00013835,2]
[351916356,1738841444656,-500.0,0.00013835,2]
[351916357,1738841444665,-521.09563371,0.00013835,2]
[351916358,1738841444675,-581.43,0.00013835,2]
[351916359,1738841444685,-1407.63,0.00013835,2]
[351916360,1738841444695,-574.58,0.00013835,2]
[351916361,1738841444704,-3631.57,0.00013835,2]
[351916362,1738841444714,-3340.79,0.00013835,2]
[351916363,1738841444724,-518.63325424,0.00013835,2]
[351916364,1738841444734,-1247.5,0.00013835,2]
[351916365,1738841444746,-8361.99,0.00013835,2]
[351916366,1738841444756,-500.0,0.00013835,2]
[351916367,1738841444765,-500.0,0.00013835,2]
[351916368,1738841444775,-14729.27,0.00013835,2]
[351916369,1738841444784,-500.0,0.00013835,2]
[351916370,1738841444793,-500.0,0.00013835,2]
[351916371,1738841444803,-603.37,0.00013835,2]
[351916372,1738841444812,-500.0,0.00013835,2]
[351916373,1738841444821,-500.0,0.00013835,2]
[351916374,1738841444831,-500.0,0.00013835,2]